bitfinex-derivatives/quotes_BTCF0:USTF0_20260214
["timestamp","ask_amount","ask_price","bid_price","bid_amount"]
[1771031961925,0.01447,69143.0,69133.0,0.014472]
[1771031962127,0.15932,69142.0,69134.0,0.014472]
[1771031962326,0.15932,69142.0,69134.0,0.028944]
[1771031962629,0.15932,69142.0,69135.0,0.014472]
[1771031963035,0.33551648,69134.0,69125.0,0.01456]
[1771031963329,0.014473,69132.0,69124.0,0.014474]
[1771031963536,0.36454848,69133.0,69125.0,0.014474]
[1771031963724,0.029032,69133.0,69125.0,0.014474]
[1771031964232,0.014472,69133.0,69125.0,0.014474]
[1771031964425,0.029033,69132.0,69125.0,0.014474]
[1771031965020,0.01456,69132.0,69129.0,0.014473]
[1771031965322,0.01456,69131.0,69128.0,0.014473]
[1771031966330,0.01456,69131.0,69127.0,0.014474]
[1771031967324,0.01756,69131.0,69127.0,0.014474]
[1771031967830,0.01456,69131.0,69127.0,0.014474]
[1771031968031,0.01756,69131.0,69127.0,0.014474]
[1771031969829,0.01456,69131.0,69127.0,0.014474]
[1771031970029,0.01956,69131.0,69127.0,0.014473]
[1771031970233,0.01456,69131.0,69127.0,0.014473]
[1771031970433,0.01956,69131.0,69127.0,0.014473]
[1771031972137,0.014473,69128.0,69114.0,1.08336231]
[1771031972327,0.014473,69129.0,69121.0,0.02895]
[1771031972828,0.014473,69129.0,69127.0,0.001]
[1771031973132,0.01452,69128.0,69121.0,0.02895]
[1771031973335,0.01452,69128.0,69121.0,0.014475]
[1771031973526,0.01452,69128.0,69122.0,0.014475]
[1771031974437,0.01452,69128.0,69121.0,0.014475]
[1771031974829,0.028994,69128.0,69121.0,0.014475]
[1771031975437,0.028994,69128.0,69121.0,0.02995]
[1771031976134,0.028994,69128.0,69121.0,0.015475]
[1771031976928,0.028994,69128.0,69122.0,0.014475]
[1771031978137,0.01452,69128.0,69124.0,0.014474]
[1771031978324,0.0586379,69126.0,69121.0,0.001]
[1771031978529,0.014474,69127.0,69121.0,0.015475]
[1771031978732,0.028993,69128.0,69121.0,0.015475]
[1771031979136,0.028993,69128.0,69122.0,0.005]
[1771031979330,0.01452,69128.0,69122.0,0.005]
[1771031979537,0.01452,69128.0,69116.0,0.31577439]
[1771031979832,0.01452,69128.0,69123.0,0.014474]
[1771031980027,0.014473,69132.0,69123.0,0.014474]
[1771031980227,0.014473,69132.0,69124.0,0.31577439]
[1771031980228,0.014473,69130.0,69124.0,0.31577439]
[1771031980434,0.028993,69131.0,69123.0,0.014474]
[1771031980831,0.028993,69131.0,69123.0,0.018474]
[1771031981337,0.028993,69131.0,69123.0,0.032994]
[1771031981636,0.01452,69131.0,69125.0,0.014474]
[1771031982132,0.01452,69131.0,69118.0,0.01452]
[1771031982133,0.31688415,69128.0,69118.0,0.01452]
[1771031982330,0.014474,69125.0,69115.0,4.4e-05]
[1771031982530,0.01452,69124.0,69121.0,0.014475]
[1771031983730,0.01452,69124.0,69120.0,0.014475]
[1771031983927,0.01452,69124.0,69115.0,0.01452]
[1771031984133,0.31688415,69122.0,69101.0,0.31577439]
[1771031984335,0.014476,69116.0,69110.0,0.59821389]
[1771031984635,0.014476,69115.0,69107.0,0.014478]
[1771031984941,0.01452,69114.0,69107.0,0.014478]
[1771031986041,0.01452,69114.0,69108.0,0.014478]
[1771031986342,0.028996,69114.0,69108.0,0.014478]
[1771031986542,0.030996,69114.0,69108.0,0.014478]
[1771031986729,0.014477,69113.0,69107.0,0.014478]
[1771031986934,0.014477,69112.0,69105.0,0.014478]
[1771031987133,0.014477,69113.0,69107.0,0.014478]
[1771031987333,0.030996,69114.0,69107.0,0.014478]
[1771031988236,0.01652,69114.0,69108.0,0.014477]
[1771031988635,0.01452,69114.0,69108.0,0.014477]
[1771031988831,0.003,69113.0,69108.0,0.014477]
[1771031989343,0.01952,69114.0,69108.0,0.014477]
[1771031989737,0.01452,69114.0,69108.0,0.014477]
[1771031990036,0.005,69113.0,69108.0,0.014477]
[1771031990237,0.005,69113.0,69106.0,0.014478]
[1771031990837,0.005,69113.0,69107.0,0.014478]
[1771031991137,0.005,69113.0,69106.0,0.014478]
[1771031991337,0.028996,69114.0,69107.0,0.014478]
[1771031991537,0.035996,69114.0,69107.0,0.014478]
[1771031991944,0.028996,69114.0,69107.0,0.014478]
[1771031992137,0.007,69113.0,69107.0,0.014478]
[1771031992742,0.035996,69114.0,69106.0,0.014478]
[1771031993141,0.007,69113.0,69106.0,0.028956]
[1771031993331,0.007,69113.0,69106.0,0.014478]
[1771031994640,0.021477,69113.0,69105.0,0.25674167]
[1771031994945,0.014477,69113.0,69106.0,0.014478]
[1771031995542,0.014477,69113.0,69105.0,0.25674167]
[1771031995845,0.022477,69113.0,69105.0,0.25674167]
[1771031996847,0.022477,69113.0,69106.0,0.014478]
[1771031997149,0.022477,69113.0,69105.0,0.25674167]
[1771031997340,0.022477,69113.0,69106.0,0.014478]
[1771031997736,0.014477,69113.0,69106.0,0.014478]
[1771031997941,0.01452,69112.0,69107.0,0.014478]
[1771031998137,0.01452,69111.0,69107.0,0.014478]
[1771031999245,0.01452,69111.0,69105.0,0.25674167]
[1771031999546,0.02552,69111.0,69105.0,0.25674167]
[1771031999747,0.02552,69111.0,69106.0,0.014478]
[1771032000239,0.02552,69111.0,69105.0,0.25674167]
[1771032000444,0.02552,69111.0,69106.0,0.014478]
[1771032000644,0.02552,69111.0,69095.0,6e-08]
[1771032000645,0.31688415,69107.0,69095.0,6e-08]
[1771032000848,0.31688415,69107.0,69085.0,1.00724125]
[1771032000849,0.014481,69094.0,69087.0,0.02913204]
[1771032001038,0.01452,69098.0,69095.0,0.01448]
[1771032001243,0.01452,69098.0,69094.0,0.01448]
[1771032001941,0.01452,69099.0,69094.0,0.32128684]
[1771032002141,0.01452,69100.0,69094.0,0.01448]
[1771032002344,0.006,69098.0,69094.0,0.01448]
[1771032003753,0.01448,69097.0,69091.0,0.01452]
[1771032004048,0.029,69097.0,69094.0,0.001]
[1771032004255,0.01448,69096.0,69094.0,0.001]
[1771032004552,0.01448,69096.0,69089.0,0.014482]
[1771032004746,0.01448,69096.0,69094.0,0.002]
[1771032004947,0.00013004,69095.0,69089.0,0.014482]
[1771032006651,0.01461004,69095.0,69088.0,0.029002]
[1771032006852,0.01461004,69095.0,69088.0,3.8e-05]
[1771032006853,0.014481,69094.0,69088.0,3.8e-05]
[1771032007047,0.014481,69093.0,69088.0,3.8e-05]
[1771032007249,0.014482,69088.0,69082.0,0.23914326]
[1771032007445,0.01452,69091.0,69082.0,0.014483]
[1771032007643,0.01452,69091.0,69083.0,0.33580984]
[1771032007949,0.01452,69091.0,69089.0,0.004]
[1771032008539,0.014479,69103.0,69095.0,0.01448]
[1771032008743,0.01452,69102.0,69095.0,0.01448]
[1771032008940,0.01452,69102.0,69097.0,0.01448]
[1771032009441,0.14476,69106.0,69099.0,0.014479]
[1771032009643,0.014478,69105.0,69098.0,0.01448]
[1771032009850,0.01452,69104.0,69098.0,0.01448]
[1771032010152,0.028998,69104.0,69097.0,0.01448]
[1771032011338,0.028998,69104.0,69097.0,0.007]
[1771032011541,0.01452,69104.0,69097.0,0.007]
[1771032011747,0.014479,69103.0,69097.0,0.007]
[1771032012251,0.014479,69103.0,69097.0,0.004]
[1771032012845,0.014479,69102.0,69097.0,0.006]
[1771032013543,0.01448,69095.0,69088.0,0.24985928]
[1771032013744,0.01452,69101.0,69083.0,0.30680684]
[1771032013745,0.01448,69098.0,69090.0,0.014481]
[1771032013948,0.029,69098.0,69091.0,0.014481]
[1771032014454,0.029,69098.0,69097.0,0.004]
[1771032014652,0.029,69098.0,69090.0,0.014481]
[1771032014851,0.029,69098.0,69090.0,0.021481]
[1771032015146,0.01452,69097.0,69090.0,0.021481]
[1771032015552,0.01452,69097.0,69092.0,0.014481]
[1771032016052,0.1448,69102.0,69096.0,0.01448]
[1771032016346,0.014479,69103.0,69095.0,0.01448]
[1771032016347,0.01452,69103.0,69100.0,0.014479]
[1771032016552,0.01452,69105.0,69100.0,0.028958]
[1771032016847,0.01452,69105.0,69100.0,0.014479]
[1771032017346,0.1448,69110.0,69099.0,0.32128584]
[1771032017550,0.723563,69141.0,69090.0,0.001]
[1771032017551,0.01452,69109.0,69108.0,0.014478]
[1771032017751,0.028997,69112.0,69104.0,0.014478]
[1771032018150,0.028997,69112.0,69105.0,0.014478]
[1771032018345,0.014477,69112.0,69105.0,0.014478]
[1771032018545,0.006,69109.0,69105.0,0.014478]
[1771032018951,0.006,69109.0,69104.0,0.014478]
[1771032019149,0.01752,69112.0,69105.0,0.014478]
[1771032019655,0.01452,69111.0,69105.0,0.014478]
[1771032020553,0.003,69109.0,69105.0,0.014478]
[1771032021145,0.01752,69111.0,69105.0,0.014478]
[1771032021753,0.005,69109.0,69105.0,0.014478]
[1771032021949,0.005,69109.0,69105.0,0.028956]
[1771032022148,0.005,69109.0,69105.0,0.014478]
[1771032022460,0.01952,69111.0,69105.0,0.028956]
[1771032023048,0.01452,69110.0,69105.0,0.028956]
[1771032023555,0.01452,69110.0,69105.0,0.014478]
[1771032023854,0.005,69109.0,69103.0,0.01452]
[1771032024055,0.005,69109.0,69103.0,0.028999]
[1771032024446,0.034997,69110.0,69103.0,0.028999]
[1771032024754,0.034997,69110.0,69103.0,0.01452]
[1771032025054,0.005,69109.0,69103.0,0.01452]
[1771032025454,0.005,69109.0,69103.0,0.014479]
[1771032026546,0.01752,69110.0,69103.0,0.014479]
[1771032026943,0.01452,69110.0,69103.0,0.014479]
[1771032027154,0.004,69109.0,69102.0,0.014479]
[1771032027355,0.018477,69109.0,69101.0,0.028958]
[1771032027556,0.014477,69109.0,69101.0,0.028958]
[1771032028047,0.014477,69109.0,69102.0,0.014479]
[1771032028354,0.016477,69109.0,69102.0,0.014479]
[1771032028547,0.016477,69109.0,69100.0,0.028999]
[1771032028752,0.014478,69108.0,69101.0,0.014479]
[1771032028952,0.01452,69107.0,69101.0,0.014479]
[1771032030354,0.01552,69107.0,69101.0,0.014479]
[1771032031356,0.029998,69107.0,69101.0,0.014479]
[1771032031554,0.014479,69101.0,69091.0,0.014481]
[1771032031758,0.014479,69101.0,69094.0,0.01448]
[1771032032057,0.014479,69101.0,69095.0,0.01448]
[1771032032353,0.014479,69101.0,69088.0,0.38330104]
[1771032032354,0.014481,69094.0,69088.0,0.38330104]
[1771032032551,0.014481,69090.0,69082.0,0.029003]
[1771032032752,0.01452,69093.0,69091.0,0.014481]
[1771032032951,0.01452,69095.0,69090.0,0.014481]
[1771032033262,0.014481,69094.0,69086.0,0.014482]
[1771032034162,0.014481,69094.0,69091.0,0.01]
[1771032034655,0.014481,69094.0,69086.0,0.014482]
[1771032034959,0.014481,69094.0,69086.0,0.020482]
[1771032035158,0.014481,69094.0,69087.0,0.014482]
[1771032035360,0.01452,69095.0,69091.0,0.003]
[1771032036058,0.01448,69098.0,69091.0,0.003]
[1771032036259,0.1738,69097.0,69091.0,0.003]
[1771032036459,0.01448,69096.0,69091.0,0.003]
[1771032036652,0.01448,69096.0,69088.0,0.014482]
[1771032037361,0.01448,69096.0,69091.0,0.005]
[1771032037856,0.01448,69096.0,69088.0,0.020482]
[1771032038258,0.02896,69096.0,69088.0,0.020482]
[1771032038561,0.02896,69096.0,69091.0,0.005]
[1771032038753,0.01448,69095.0,69091.0,0.005]
[1771032038957,0.014481,69092.0,69083.0,0.014483]
[1771032039153,0.014481,69092.0,69084.0,0.014482]
[1771032039355,0.01452,69091.0,69084.0,0.014482]
[1771032039552,0.01452,69091.0,69085.0,0.014482]
[1771032039748,0.01452,69091.0,69084.0,0.014483]
[1771032039955,0.01452,69091.0,69088.0,0.005]
[1771032040155,0.029001,69091.0,69088.0,0.005]
[1771032040350,0.014482,69087.0,69081.0,0.24552439]
[1771032040556,0.014482,69087.0,69084.0,0.007]
[1771032040761,0.043484,69088.0,69080.0,0.014483]
[1771032040962,0.01452,69088.0,69079.0,0.01452]
[1771032041159,0.01452,69088.0,69083.0,0.014483]
[1771032041967,0.01452,69088.0,69082.0,0.014483]
[1771032042665,0.029002,69088.0,69082.0,0.24745201]
[1771032042851,0.030002,69088.0,69081.0,0.014483]
[1771032043364,0.029002,69088.0,69081.0,0.014483]
[1771032043662,0.030002,69088.0,69082.0,0.002]
[1771032043857,0.030002,69088.0,69082.0,0.24610381]
[1771032044060,0.030002,69088.0,69082.0,0.24410381]
[1771032044357,0.030002,69088.0,69081.0,0.015483]
[1771032044563,0.01452,69088.0,69081.0,0.014483]
[1771032045063,0.01452,69087.0,69085.0,0.014482]
[1771032045358,0.01452,69088.0,69085.0,0.014482]
[1771032045563,0.014481,69092.0,69085.0,0.014482]
[1771032045758,0.014481,69092.0,69084.0,0.014483]
[1771032045963,0.01452,69091.0,69084.0,0.014483]
[1771032046461,0.01452,69091.0,69089.0,0.014481]
[1771032046669,0.01452,69095.0,69089.0,0.014482]
[1771032046863,0.01452,69095.0,69091.0,0.028962]
[1771032047069,0.01452,69100.0,69096.0,0.01448]
[1771032047365,0.014477,69110.0,69094.0,0.29393102]
[1771032047554,0.014478,69108.0,69101.0,0.014479]
[1771032047760,0.014479,69104.0,69096.0,0.01448]
[1771032048068,0.028999,69104.0,69096.0,0.01448]
[1771032049169,0.028999,69104.0,69096.0,0.01548]
[1771032051272,0.01452,69104.0,69097.0,0.01448]
[1771032051570,0.01452,69104.0,69098.0,0.014479]
[1771032051969,0.014479,69103.0,69096.0,0.001]
[1771032052565,0.014479,69103.0,69097.0,0.001]
[1771032052872,0.014479,69102.0,69097.0,0.001]
[1771032053073,0.014479,69102.0,69095.0,0.029]
[1771032053265,0.014479,69102.0,69096.0,0.001]
[1771032053665,0.014479,69102.0,69095.0,0.029]
[1771032053867,0.014479,69102.0,69097.0,0.001]
[1771032054066,0.30606476,69101.0,69088.0,0.014482]
[1771032054269,0.028999,69100.0,69091.0,0.014481]
[1771032054472,0.028999,69100.0,69092.0,0.014481]
[1771032054671,0.028999,69100.0,69094.0,0.01448]
[1771032055073,0.014479,69099.0,69093.0,0.014481]
[1771032055270,0.028999,69100.0,69094.0,0.01448]
[1771032055473,0.028999,69100.0,69096.0,0.001]
[1771032055774,0.014479,69099.0,69096.0,0.001]
[1771032055974,0.014479,69099.0,69094.0,0.001]
[1771032056175,0.014479,69099.0,69094.0,0.01548]
[1771032056378,0.034999,69100.0,69094.0,0.01548]
[1771032056572,0.014479,69099.0,69096.0,0.002]
[1771032056981,0.01448,69098.0,69096.0,0.002]
[1771032057176,0.01448,69098.0,69094.0,0.001]
[1771032057775,0.01452,69097.0,69094.0,0.001]
[1771032058477,0.01452,69097.0,69091.0,0.014481]
[1771032058679,0.01452,69097.0,69089.0,0.029001]
[1771032058680,0.30606576,69096.0,69084.0,0.014483]
[1771032058971,0.014482,69087.0,69082.0,0.26450595]
[1771032059178,0.014482,69086.0,69082.0,0.24998595]
[1771032059375,0.014482,69087.0,69080.0,0.014483]
[1771032059575,0.029002,69088.0,69082.0,0.014483]
[1771032059880,0.029002,69088.0,69084.0,0.016482]
[1771032059881,0.01452,69088.0,69084.0,0.016482]
[1771032060072,0.01452,69088.0,69084.0,0.014482]
[1771032060273,0.01452,69088.0,69083.0,0.014483]
[1771032060869,0.1448,69092.0,69080.0,0.014483]
[1771032061075,0.01452,69091.0,69087.0,0.014482]
[1771032061479,0.01452,69091.0,69084.0,0.014482]
[1771032061781,0.01448,69098.0,69084.0,0.31777566]
[1771032062082,0.15932,69097.0,69091.0,0.014481]
[1771032062777,0.15932,69097.0,69088.0,0.014482]
[1771032062972,0.15932,69097.0,69093.0,0.014481]
[1771032063175,0.01452,69097.0,69093.0,0.014481]
[1771032063376,0.01452,69097.0,69094.0,0.01448]
[1771032063584,0.01452,69098.0,69093.0,0.014481]
[1771032064491,0.01,69097.0,69091.0,0.016481]
[1771032064783,0.01452,69098.0,69091.0,0.016481]
[1771032065082,0.02052,69098.0,69093.0,0.002]
[1771032065383,0.01452,69098.0,69093.0,0.016481]
[1771032065580,0.01452,69098.0,69093.0,0.014481]
[1771032065776,0.006,69097.0,69093.0,0.014481]
[1771032066282,0.02052,69098.0,69093.0,0.016481]
[1771032066474,0.02052,69098.0,69093.0,0.002]
[1771032067880,0.01448,69097.0,69093.0,0.002]
[1771032068083,0.01448,69097.0,69089.0,0.014481]
[1771032068382,0.001,69097.0,69093.0,0.004]
[1771032068680,0.01448,69099.0,69093.0,0.004]
[1771032068877,0.02401101,69099.0,69093.0,0.004]
[1771032069183,0.02401101,69099.0,69092.0,0.014481]
[1771032069379,0.001,69097.0,69092.0,0.014481]
[1771032069571,0.001,69097.0,69091.0,0.029001]
[1771032070379,0.001,69097.0,69091.0,0.01452]
[1771032070578,0.01448,69096.0,69091.0,0.01452]
[1771032071976,0.01548,69096.0,69091.0,0.01452]
[1771032074585,0.01548,69096.0,69091.0,0.02052]
[1771032074783,0.001,69096.0,69091.0,0.02052]
[1771032074981,0.001,69096.0,69091.0,0.035001]
[1771032075183,0.001,69096.0,69091.0,0.02052]
[1771032075382,0.01548,69096.0,69091.0,0.02052]
[1771032075779,0.01548,69096.0,69091.0,0.006]
[1771032077792,0.001,69096.0,69091.0,0.006]
[1771032077994,0.001,69096.0,69091.0,0.020481]
[1771032079291,0.001,69096.0,69091.0,0.006]
[1771032079999,0.001,69096.0,69091.0,0.003]
[1771032080199,0.02996,69096.0,69091.0,0.003]
[1771032080505,0.01452,69097.0,69086.0,0.014482]
[1771032080506,0.014481,69094.0,69086.0,0.014482]
[1771032080802,0.014481,69094.0,69087.0,0.01452]
[1771032081203,0.01448,69095.0,69087.0,0.029002]
[1771032081500,0.01448,69095.0,69088.0,0.014482]
[1771032081702,0.001,69094.0,69088.0,0.014482]
[1771032082105,0.01552,69094.0,69088.0,0.014482]
[1771032082601,0.01552,69094.0,69087.0,0.01452]
[1771032082798,0.01552,69094.0,69087.0,0.029002]
[1771032082998,0.01452,69094.0,69087.0,0.029002]
[1771032083200,0.01452,69094.0,69087.0,0.030002]
[1771032083606,0.01452,69094.0,69087.0,0.029002]
[1771032083798,0.01752,69094.0,69087.0,0.030002]
[1771032084307,0.01652,69094.0,69088.0,0.014482]
[1771032084501,0.01652,69094.0,69090.0,0.014481]
[1771032084705,0.029001,69094.0,69087.0,0.01452]
[1771032084899,0.032001,69094.0,69087.0,0.01552]
[1771032085397,0.017481,69094.0,69087.0,0.01552]
[1771032086306,0.017481,69094.0,69088.0,0.001]
[1771032086701,0.017481,69094.0,69087.0,0.01452]
[1771032086999,0.017481,69094.0,69087.0,0.030002]
[1771032087306,0.014481,69094.0,69087.0,0.029002]
[1771032087506,0.017481,69094.0,69088.0,0.001]
[1771032087901,0.01452,69096.0,69089.0,0.014481]
[1771032088109,0.003,69094.0,69089.0,0.014481]
[1771032088409,0.003,69094.0,69088.0,0.014482]
[1771032089306,0.029,69096.0,69088.0,0.014482]
[1771032089507,0.029,69096.0,69089.0,0.014482]
[1771032089804,0.029,69096.0,69088.0,0.014482]
[1771032091412,0.024,69096.0,69088.0,0.014482]
[1771032091910,0.03848,69096.0,69088.0,0.014482]
[1771032092809,0.024,69096.0,69089.0,0.014482]
[1771032093111,0.01452,69096.0,69089.0,0.014482]
[1771032093312,0.01448,69097.0,69090.0,0.014481]
[1771032093500,0.029,69097.0,69090.0,0.014481]
[1771032093699,0.01452,69097.0,69091.0,0.014481]
[1771032093908,0.029,69099.0,69091.0,0.014481]
[1771032094112,0.04348,69099.0,69091.0,0.014481]
[1771032094314,0.01448,69098.0,69091.0,0.014481]
[1771032094505,0.028999,69099.0,69092.0,0.014481]
[1771032094706,0.028999,69099.0,69091.0,0.029001]
[1771032095014,0.043478,69101.0,69093.0,0.014481]
[1771032095508,0.014479,69100.0,69092.0,0.014481]
[1771032096302,0.028999,69100.0,69093.0,0.001]
[1771032096513,0.014479,69100.0,69093.0,0.001]
[1771032096704,0.028999,69100.0,69092.0,0.014481]
[1771032096908,0.028999,69100.0,69092.0,0.016481]
[1771032097414,0.028999,69100.0,69093.0,0.006]
[1771032098512,0.02896,69098.0,69093.0,0.006]
[1771032098727,0.01448,69098.0,69091.0,0.01452]
[1771032099313,0.029,69097.0,69088.0,0.029002]
[1771032099508,0.029,69097.0,69092.0,0.007]
[1771032099910,0.01448,69096.0,69088.0,0.029002]
[1771032100206,0.01448,69096.0,69091.0,0.006]
[1771032100716,0.01448,69096.0,69092.0,0.009]
[1771032101114,0.01448,69096.0,69088.0,0.040002]
[1771032101508,0.01448,69095.0,69088.0,0.02552]
[1771032102511,0.01448,69095.0,69088.0,0.01452]
[1771032102714,0.014481,69094.0,69092.0,0.006]
[1771032102914,0.32757057,69093.0,69082.0,0.24287476]
[1771032103218,0.014482,69088.0,69081.0,0.014483]
[1771032103414,0.014482,69087.0,69075.0,0.1448]
[1771032103621,0.014482,69087.0,69068.0,0.29393552]
[1771032103622,0.014484,69075.0,69068.0,0.1448]
[1771032103814,0.014485,69074.0,69069.0,0.01452]
[1771032104222,0.014485,69072.0,69069.0,0.01452]
[1771032104414,0.014485,69074.0,69069.0,0.01452]
[1771032104718,0.014485,69075.0,69068.0,0.07819477]
[1771032105114,0.014489,69052.0,69040.0,0.014492]
[1771032105321,0.014489,69052.0,69043.0,0.54943067]
[1771032105322,0.01452,69051.0,69043.0,0.54943067]
[1771032105518,0.01449,69048.0,69043.0,0.54943067]
[1771032105719,0.014491,69045.0,69037.0,0.29393552]
[1771032106019,0.02913446,69044.0,69037.0,0.29393552]
[1771032106518,0.01464346,69044.0,69037.0,0.29393552]
[1771032107425,0.01452,69044.0,69037.0,0.29593552]
[1771032108024,0.01452,69044.0,69037.0,0.31042752]
[1771032108322,0.01452,69043.0,69042.0,0.014491]
[1771032108514,0.01452,69043.0,69040.0,0.014492]
[1771032108715,0.01452,69043.0,69041.0,0.014492]
[1771032109118,0.01456,69043.0,69041.0,0.014492]
[1771032109314,0.01656,69043.0,69041.0,0.014492]
[1771032109720,0.01656,69043.0,69037.0,0.29393552]
[1771032110115,0.01656,69043.0,69040.0,0.014492]
[1771032110516,0.01656,69043.0,69038.0,0.014492]
[1771032110719,0.01656,69043.0,69039.0,0.014492]
[1771032111325,0.01656,69043.0,69038.0,0.014492]
[1771032112416,0.01656,69043.0,69040.0,0.014492]
[1771032112620,0.01556,69043.0,69040.0,0.014492]
[1771032112820,0.01556,69043.0,69038.0,0.014492]
[1771032113122,0.01556,69043.0,69039.0,0.014492]
[1771032113428,0.01556,69043.0,69036.0,0.014493]
[1771032113619,0.01556,69043.0,69037.0,0.014492]
[1771032114026,0.01556,69043.0,69039.0,0.014492]
[1771032114322,0.01556,69043.0,69040.0,0.014492]
[1771032114920,0.14488,69048.0,69042.0,0.014491]
[1771032115118,0.01456,69047.0,69042.0,0.014491]
[1771032115324,0.004,69043.0,69042.0,0.014491]
[1771032115527,0.01456,69043.0,69042.0,0.014491]
[1771032115728,0.14488,69048.0,69043.0,0.014491]
[1771032115924,0.01456,69047.0,69043.0,0.014491]
[1771032116922,0.31305057,69063.0,69042.0,0.29393552]
[1771032117120,0.014488,69058.0,69049.0,0.01449]
[1771032117325,0.15944,69057.0,69045.0,0.014491]
[1771032117522,0.173928,69057.0,69047.0,0.01449]
[1771032117725,0.15944,69057.0,69049.0,0.01449]
[1771032118531,0.15944,69056.0,69049.0,0.01449]
[1771032119128,0.15944,69056.0,69047.0,0.01449]
[1771032119534,0.15944,69056.0,69048.0,0.01449]
[1771032120526,0.15944,69056.0,69049.0,0.01449]
[1771032120726,0.15944,69056.0,69047.0,0.02898]
[1771032120928,0.15944,69056.0,69048.0,0.01449]
[1771032121136,0.173929,69056.0,69047.0,0.01749]
[1771032121528,0.014486,69068.0,69052.0,0.30470911]
[1771032121728,0.014488,69059.0,69052.0,0.30470911]
[1771032121924,0.15944,69058.0,69051.0,0.014489]
[1771032122129,0.014489,69054.0,69047.0,0.003]
[1771032122328,0.014489,69052.0,69043.0,0.014491]
[1771032122627,0.01456,69051.0,69044.0,0.014491]
[1771032123030,0.01456,69051.0,69034.0,0.014493]
[1771032123031,0.28613574,69030.0,69011.0,0.014498]
[1771032123246,0.014495,69024.0,69010.0,0.30470911]
[1771032123433,0.014496,69022.0,69012.0,0.014498]
[1771032123622,0.014496,69021.0,69012.0,0.31920711]
[1771032123828,0.014499,69008.0,68990.0,0.30470911]
[1771032124031,0.014499,69006.0,68993.0,0.31921111]
[1771032124336,0.0145,69002.0,68993.0,0.31921111]
[1771032124533,0.02906,69001.0,68993.0,0.30470911]
[1771032124733,0.014501,68997.0,68993.0,0.30470911]
[1771032124928,0.0145,69000.0,68993.0,0.30470911]
[1771032125234,0.014501,68998.0,68993.0,0.30470911]
[1771032125828,0.014501,68997.0,68990.0,0.01456]
[1771032126029,0.014501,68999.0,68990.0,0.01456]
[1771032126327,0.014501,68999.0,68990.0,0.029062]
[1771032126535,0.01456,68999.0,68990.0,0.029062]
[1771032126736,0.029061,68999.0,68990.0,0.029062]
[1771032127036,0.014501,68998.0,68990.0,0.01456]
[1771032127237,0.01456,68999.0,68990.0,0.029062]
[1771032127437,0.01456,68999.0,68993.0,0.001]
[1771032128038,0.01456,68999.0,68991.0,0.014502]
[1771032128431,0.014501,68997.0,68990.0,0.01456]
[1771032128636,0.014501,68998.0,68990.0,0.01456]
[1771032129430,0.01456,68999.0,68991.0,0.014502]
[1771032130738,0.003,68998.0,68991.0,0.014502]
[1771032131131,0.01456,68999.0,68991.0,0.014502]
[1771032131334,0.01856,68999.0,68991.0,0.015502]
[1771032131633,0.01456,68999.0,68992.0,0.014502]
[1771032131836,0.004,68998.0,68992.0,0.014502]
[1771032132233,0.01456,68999.0,68992.0,0.014502]
[1771032132733,0.01456,68999.0,68992.0,0.31921111]
[1771032132935,0.14496,69008.0,69000.0,0.30470911]
[1771032133143,0.01456,69007.0,69000.0,0.30470911]
[1771032133639,0.01456,69007.0,68997.0,0.31921011]
[1771032134443,0.01956,69007.0,69000.0,0.002]
[1771032134629,0.014496,69019.0,69001.0,0.0145]
[1771032134831,0.15952,69018.0,69007.0,0.014499]
[1771032135440,0.15952,69018.0,69006.0,0.014499]
[1771032135743,0.01456,69017.0,69006.0,0.014499]
[1771032136236,0.014494,69031.0,69011.0,0.30470911]
[1771032136438,0.174014,69028.0,69018.0,0.30470911]
[1771032136742,0.15952,69028.0,69018.0,0.30470911]
[1771032136934,0.15952,69028.0,69016.0,0.014497]
[1771032137134,0.15952,69028.0,69015.0,0.01456]
[1771032137836,0.014495,69026.0,69015.0,0.01456]
[1771032138340,0.014495,69026.0,69018.0,0.002]
[1771032138841,0.019495,69026.0,69015.0,0.01556]
[1771032140036,0.01456,69025.0,69015.0,0.030057]
[1771032140234,0.01456,69025.0,69018.0,0.002]
[1771032140942,0.01456,69025.0,69015.0,0.030057]
[1771032141442,0.02156,69025.0,69018.0,0.002]
[1771032141940,0.01956,69025.0,69015.0,0.01556]
[1771032142742,0.01956,69025.0,69015.0,0.030057]
[1771032143340,0.014491,69043.0,69021.0,0.30470911]
[1771032143544,0.14496,69042.0,69032.0,0.30470911]
[1771032143733,0.014492,69039.0,69028.0,0.30470911]
[1771032143937,0.014493,69034.0,69022.0,0.014496]
[1771032144244,0.01456,69033.0,69022.0,0.014496]
[1771032145037,0.01456,69033.0,69023.0,0.014495]
[1771032145746,0.01456,69033.0,69022.0,0.001]
[1771032145941,0.01456,69033.0,69024.0,0.014495]
[1771032146338,0.01456,69033.0,69025.0,0.014495]
[1771032146737,0.01556,69033.0,69025.0,0.014495]
[1771032147741,0.01456,69033.0,69026.0,0.31920411]
[1771032147942,0.01556,69033.0,69025.0,0.002]
[1771032148249,0.014494,69031.0,69021.0,0.01456]
[1771032148549,0.014494,69031.0,69025.0,0.006]
[1771032148752,0.01456,69030.0,69025.0,0.006]
[1771032149842,0.01456,69030.0,69025.0,0.004]